fUST/lending_fUST_20240313
["ID","MTS","AMOUNT","RATE_DAILY","PERIOD"]
[318558119,1710291041262,-500.0,0.00015498,2]
[318558120,1710291041273,-500.0,0.00015498,2]
[318558122,1710291041284,-500.9773869,0.00015498,2]
[318558123,1710291041293,-240.00674681,0.00015498,2]
[318558125,1710291041303,-500.0,0.00015498,2]
[318558126,1710291041311,-500.0,0.00015498,2]
[318558128,1710291041320,-500.0,0.00015498,2]
[318558129,1710291041329,-500.0,0.00015498,2]
[318558131,1710291041339,-500.0,0.00015498,2]
[318558132,1710291041348,-500.0,0.00015498,2]
[318558134,1710291041358,-500.0,0.00015498,2]
[318558136,1710291041368,-500.0,0.00015498,2]
[318558137,1710291041377,-500.0,0.00015498,2]
[318558139,1710291041386,-359.51401882,0.00015498,2]
[318558140,1710291041395,-500.0,0.00015498,2]
[318558141,1710291041404,-500.0,0.00015498,2]
[318558143,1710291041413,-500.0,0.00015498,2]
[318558145,1710291041422,-278.80092404,0.00015498,2]
[318558146,1710291041431,-500.0,0.00015498,2]
[318558148,1710291041440,-637.79260692,0.00015498,2]
[318558149,1710291041449,-500.0,0.00015498,2]
[318558151,1710291041459,-500.0,0.00015498,2]
[318558153,1710291041468,-608.05773769,0.00015498,2]
[318558154,1710291041477,-500.0,0.00015498,2]
[318558156,1710291041486,-500.0,0.00015498,2]
[318558158,1710291041495,-500.0,0.00015498,2]
[318558159,1710291041504,-165.68066452,0.00015499,2]
[318558161,1710291041513,-2222.54358435,0.00015499,5]
[318558162,1710291041523,-500.0,0.00015499,2]
[318558164,1710291041532,-500.0,0.00015499,2]
[318558165,1710291041540,-500.0,0.00015499,2]
[318558167,1710291041550,-500.0,0.00015499,2]
[318558168,1710291041559,-500.0,0.00015499,2]
[318558170,1710291041568,-500.0,0.00015499,2]
[318558172,1710291041576,-500.0,0.00015499,2]
[318558173,1710291041585,-500.0,0.00015499,2]
[318558175,1710291041594,-500.0,0.00015499,2]
[318558177,1710291041604,-500.0,0.00015499,2]
[318558178,1710291041613,-500.0,0.00015499,2]
[318558180,1710291041622,-500.0,0.00015499,2]
[318558181,1710291041630,-500.0,0.00015499,2]
[318558183,1710291041639,-500.0,0.00015499,2]
[318558184,1710291041648,-500.0,0.00015499,2]
[318558186,1710291041657,-500.0,0.00015499,2]
[318558188,1710291041666,-500.0,0.00015499,2]
[318558189,1710291041675,-500.0,0.00015499,2]
[318558191,1710291041684,-204.41272195,0.00015499,2]
[318558193,1710291041693,-500.0,0.00015499,2]
[318558194,1710291041702,-500.0,0.00015499,2]
[318558196,1710291041711,-500.0,0.00015499,2]
[318558197,1710291041720,-500.0,0.00015499,2]
[318558199,1710291041729,-500.0,0.00015499,2]
[318558201,1710291041737,-500.0,0.00015499,2]
[318558202,1710291041746,-500.0,0.00015499,2]
[318558204,1710291041757,-500.0,0.00015499,2]
[318558206,1710291041766,-268.52357986,0.00015499,2]
[318558207,1710291041775,-645.09447627,0.00015499,2]
[318558209,1710291041784,-500.0,0.00015499,2]
[318558210,1710291041794,-500.0,0.00015499,2]
[318558212,1710291041803,-500.0,0.00015499,2]
[318558214,1710291041812,-500.0,0.00015499,2]
[318558215,1710291041821,-353.61616877,0.00015499,2]
[318558217,1710291041830,-500.0,0.00015499,2]
[318558218,1710291041839,-500.0,0.00015499,2]
[318558220,1710291041848,-500.0,0.00015499,2]
[318558222,1710291041859,-500.0,0.00015499,2]
[318558224,1710291041873,-500.0,0.00015499,2]
[318558225,1710291041883,-500.0,0.00015499,2]
[318558227,1710291041892,-500.0,0.00015499,2]
[318558228,1710291041901,-216.83818254,0.00015499,2]
[318558230,1710291041910,-500.0,0.00015499,2]
[318558232,1710291041919,-500.0,0.00015499,2]
[318558233,1710291041928,-500.0,0.00015499,2]
[318558235,1710291041937,-500.0,0.00015499,2]
[318558236,1710291041946,-500.0,0.00015499,2]
[318558238,1710291041955,-500.0,0.00015499,2]
[318558240,1710291041964,-500.0,0.00015499,2]
[318558241,1710291041974,-500.0,0.00015499,2]
[318558243,1710291041983,-500.0,0.00015499,2]
[318558245,1710291041991,-500.0,0.00015499,2]
[318558246,1710291042001,-500.0,0.00015499,2]
[318558248,1710291042010,-500.0,0.00015499,2]
[318558249,1710291042019,-500.0,0.00015499,2]
[318558251,1710291042028,-500.0,0.00015499,2]
[318558253,1710291042037,-500.0,0.00015499,2]
[318558254,1710291042046,-500.0,0.00015499,2]
[318558256,1710291042055,-500.0,0.00015499,2]
[318558257,1710291042063,-500.0,0.00015499,2]
[318558259,1710291042072,-500.0,0.00015499,2]
[318558260,1710291042081,-500.0,0.00015499,2]
[318558262,1710291042090,-427.88222629,0.00015499,2]
[318558264,1710291042099,-500.0,0.00015499,2]
[318558265,1710291042107,-500.0,0.00015499,2]
[318558267,1710291042117,-500.0,0.00015499,2]
[318558269,1710291042126,-500.0,0.00015499,2]
[318558270,1710291042134,-500.0,0.00015499,2]
[318558272,1710291042143,-500.0,0.00015499,2]
[318558273,1710291042152,-500.0,0.00015499,2]
[318558275,1710291042162,-500.0,0.00015499,2]
[318558277,1710291042170,-500.0,0.00015499,2]
[318558278,1710291042179,-500.0,0.00015499,2]
[318558280,1710291042189,-500.0,0.00015499,2]
[318558281,1710291042198,-500.0,0.00015499,2]
[318558283,1710291042207,-500.0,0.00015499,2]
[318558285,1710291042216,-329.77420208,0.00015499,2]
[318558286,1710291042225,-500.0,0.00015499,2]
[318558288,1710291042234,-500.0,0.00015499,2]
[318558289,1710291042243,-500.0,0.00015499,2]
[318558291,1710291042252,-500.0,0.00015499,2]
[318558293,1710291042261,-500.0,0.00015499,2]
[318558294,1710291042270,-500.0,0.00015499,2]
[318558296,1710291042281,-500.0,0.00015499,2]
[318558298,1710291042290,-500.0,0.00015499,2]
[318558299,1710291042299,-500.0,0.00015499,2]
[318558301,1710291042307,-500.0,0.00015499,2]
[318558302,1710291042317,-530.59322264,0.00015499,2]
[318558304,1710291042326,-500.0,0.00015499,2]
[318558306,1710291042335,-374.31710271,0.00015499,2]
[318558307,1710291042344,-500.0,0.00015499,2]
[318558309,1710291042353,-500.0,0.00015499,2]
[318558310,1710291042363,-502.94412023,0.00015499,2]
[318558312,1710291042374,-500.0,0.00015499,2]
[318558314,1710291042382,-500.0,0.00015499,2]
[318558315,1710291042391,-321.91043796,0.00015499,2]
[318558317,1710291042400,-337.72991747,0.00015499,2]
[318558318,1710291042409,-502.0611961,0.00015499,2]
[318558320,1710291042418,-500.0,0.00015499,2]
[318558322,1710291042427,-500.0,0.00015499,2]
[318558323,1710291042436,-500.0,0.00015499,2]
[318558325,1710291042445,-500.0,0.00015499,2]
[318558326,1710291042454,-500.0,0.00015499,2]
[318558328,1710291042463,-500.0,0.00015499,2]
[318558330,1710291042472,-270.66,0.00015499,2]
[318558331,1710291042481,-500.0,0.00015499,2]
[318558333,1710291042490,-582.86993469,0.00015499,2]
[318558335,1710291042498,-500.0,0.00015499,2]
[318558336,1710291042507,-443.46,0.00015499,2]
[318558338,1710291042516,-548.9769858,0.00015499,2]
[318558339,1710291042525,-573.62428806,0.00015499,2]
[318558341,1710291042534,-500.0,0.00015499,2]
[318558343,1710291042543,-500.0,0.00015499,2]
[318558344,1710291042553,-500.0,0.00015499,2]
[318558346,1710291042562,-500.0,0.00015499,2]
[318558347,1710291042571,-500.0,0.00015499,2]
[318558348,1710291042579,-310.42523325,0.00015499,2]
[318558349,1710291042589,-499.56970222,0.00015499,2]
[318558351,1710291042598,-500.0,0.00015499,2]
[318558352,1710291042607,-445.66447498,0.00015499,2]
[318558354,1710291042616,-408.8235095,0.00015499,2]
[318558355,1710291042626,-500.0,0.00015499,2]
[318558357,1710291042635,-500.0,0.00015499,2]
[318558358,1710291042644,-486.20905218,0.00015499,2]
[318558428,1710292232281,-500.0,0.00012896,2]
[318558429,1710292232290,-500.0,0.00013698,2]
[318558430,1710292232301,-500.0,0.00013698,2]
[318558431,1710292232310,-500.9116836,0.00013698,2]
[318558432,1710292232319,-500.0,0.00013698,2]
[318558433,1710292232329,-500.0,0.00013698,2]
[318558435,1710292232338,-500.0,0.00013698,2]
[318558436,1710292232346,-384.586008,0.00013699,2]
[318558438,1710292232356,-500.0,0.00014023,2]
[318558440,1710292232365,-500.0,0.00014023,2]
[318558441,1710292232375,-500.0,0.00014023,2]
[318558442,1710292232384,-500.0,0.00014023,2]
[318558444,1710292232394,-500.0,0.00014023,2]
[318558447,1710292232403,-500.0,0.00014023,2]
[318558450,1710292232413,-500.0,0.00014023,2]
[318558452,1710292232422,-62.77131131,0.00014023,2]
[318558455,1710292232434,-437.22868869,0.00014023,2]
[318558457,1710292232443,-500.0,0.00014023,2]
[318558458,1710292232453,-500.0,0.00014023,2]
[318558461,1710292232462,-500.0,0.00014023,2]
[318558464,1710292232471,-47674.13870623,0.00014784,2]
[318558467,1710292232481,-2000.0,0.00014785,2]
[318558470,1710292232490,-225.414,0.00014879,2]
[318558473,1710292232499,-225.415,0.00014879,2]
[318558476,1710292232509,-225.414,0.00014879,2]
[318558479,1710292232518,-225.415,0.00014879,2]
[318558483,1710292232533,-225.415,0.00014879,2]
[318558486,1710292232547,-236.20338182,0.00015022,2]
[318558489,1710292232560,-500.0,0.00015023,2]
[318558491,1710292232572,-500.0,0.00015023,2]
[318558493,1710292232584,-500.0,0.00015024,2]
[318558495,1710292232597,-500.0,0.00015024,2]
[318558498,1710292232614,-500.0,0.00015024,2]
[318558500,1710292232626,-169.24084105,0.00015177,2]
[318558502,1710292232636,-822.729,0.00015189,2]
[318558504,1710292232647,-822.729,0.00015189,2]
[318558506,1710292232658,-822.73,0.00015189,2]
[318558509,1710292232671,-822.729,0.00015189,2]
[318558511,1710292232682,-822.73,0.00015189,2]
[318558513,1710292232694,-500.0,0.00015398,2]
[318558515,1710292232706,-542.54589939,0.00015399,2]
[318558517,1710292232717,-500.0,0.00015399,2]
[318558519,1710292232728,-500.0,0.00015399,2]
[318558521,1710292232740,-500.0,0.00015399,2]
[318558523,1710292232751,-500.0,0.00015399,2]
[318558526,1710292232763,-359.60783757,0.00015482,2]
[318558528,1710292232775,-2566.31853586,0.00015483,2]
[318558530,1710292232786,-1506.08163674,0.00015483,2]
[318558532,1710292232797,-500.0,0.00015497,2]
[318558534,1710292232809,-240.70063196,0.00015498,2]
[318558536,1710292232821,-334.26161942,0.00015498,2]
[318558538,1710292232832,-241.0000508,0.00015498,2]
[318558540,1710292232843,-179.75548082,0.00015498,2]
[318558542,1710292232854,-395.92,0.00015498,2]
[318558545,1710292232865,-500.0,0.00015498,2]
[318558547,1710292232877,-500.0,0.00015498,2]
[318558549,1710292232888,-500.0,0.00015498,2]
[318558551,1710292232900,-224.02,0.00015498,2]
[318558553,1710292232911,-500.0,0.00015498,2]
[318558555,1710292232922,-500.0,0.00015498,2]
[318558557,1710292232932,-500.0,0.00015498,2]
[318558559,1710292232942,-500.0,0.00015498,2]
[318558561,1710292232953,-500.0,0.00015498,2]
[318558564,1710292232963,-500.0,0.00015498,2]
[318558566,1710292232973,-500.0,0.00015498,2]
[318558568,1710292232984,-155.15515516,0.00015499,2]
[318558570,1710292232994,-312.56879444,0.00015499,2]
[318558572,1710292233004,-155.15515516,0.00015499,2]
[318558574,1710292233015,-490.27094782,0.00015499,2]
[318558577,1710292233028,-500.0,0.00015499,2]
[318558579,1710292233038,-500.0,0.00015499,2]
[318558581,1710292233048,-500.0,0.00015499,2]
[318558583,1710292233057,-500.0,0.00015499,2]
[318558585,1710292233068,-500.0,0.00015499,2]
[318558587,1710292233077,-441.77,0.00015499,2]
[318558589,1710292233086,-500.0,0.00015499,2]
[318558591,1710292233099,-500.0,0.00015499,2]
[318558593,1710292233113,-122227.45742011,0.000155,2]
[318558913,1710292238449,-1084.15519533,0.00015344,2]
[318558915,1710292238458,-216200.05704688,0.000155,2]
[318558918,1710292238472,-5398.73931212,0.000155,2]
[318559177,1710292246577,-646.647591,0.000154,2]
[318559178,1710292246589,-236.20338182,0.00015499,2]
[318559179,1710292246600,-2555.80537718,0.000155,2]
[318559393,1710293438786,-192.293004,0.00014498,2]
[318559397,1710293438795,-2000.0,0.00014952,2]
[318559401,1710293438805,-634.2461044,0.000153,2]
[318559405,1710293438815,-185.21481646,0.00015399,2]
[318559408,1710293438825,-187.37817515,0.000154,2]
[318559411,1710293438835,-500.0,0.00015497,2]
[318559414,1710293438845,-500.0,0.00015497,2]
[318559417,1710293438861,-184.15102485,0.00015498,2]
[318559420,1710293438871,-181.93209012,0.00015498,2]
[318559423,1710293438882,-6830.58730612,0.00015498,2]
[318559427,1710293438893,-500.0,0.00015498,2]
[318559430,1710293438904,-500.0,0.00015498,2]
[318559434,1710293438917,-500.0,0.00015498,2]
[318559437,1710293438930,-500.0,0.00015498,2]
[318559440,1710293438941,-19445.71626363,0.00015499,2]
[318559443,1710293438951,-500.0,0.00015499,2]
[318559445,1710293438960,-500.0,0.00015499,2]
[318559447,1710293438972,-191.50358553,0.00015499,2]
[318559451,1710293438985,-500.0,0.00015499,2]
[318559454,1710293438995,-500.0,0.00015499,2]
[318559456,1710293439005,-235.47823425,0.00015499,2]
[318559461,1710293439023,-180931.55644237,0.000155,2]
[318560251,1710293446758,-58595.07418625,0.000155,2]
[318560252,1710293446821,-803.3983542,0.000155,2]
[318565849,1710293975753,981.06701963,0.00025,120]
[318565850,1710293996555,1680.46766704,0.00025,120]
[318565877,1710294632684,-596.50052206,0.00014419,2]
[318565878,1710294632694,-192.293004,0.0001442,2]
[318565879,1710294632703,-19251.0,0.000145,2]
[318565880,1710294632712,-185.82152373,0.00015102,2]
[318565881,1710294632721,-2000.0,0.00015202,2]
[318565882,1710294632731,-344.6189165,0.000154,2]
[318565883,1710294632740,-187.37817515,0.000154,2]
[318565884,1710294632750,-463.79334523,0.000154,2]
[318565886,1710294632759,-19592.54796629,0.00015498,2]
[318565889,1710294632769,-182.08971488,0.00015498,2]
[318565892,1710294632780,-6890.23424132,0.00015498,2]
[318565894,1710294632790,-185.02244856,0.00015498,2]
[318565895,1710294632799,-500.0,0.00015499,2]
[318565896,1710294632809,-506.26341983,0.00015499,2]
[318565897,1710294632820,-350.9044804,0.00015499,2]
[318565898,1710294632829,-500.0,0.00015499,2]
[318565899,1710294632839,-506.51999695,0.00015499,2]
[318565900,1710294632848,-417.08888478,0.00015499,2]
[318565902,1710294632859,-500.0,0.00015499,2]
[318565904,1710294632869,-500.0,0.00015499,2]
[318565906,1710294632878,-500.0,0.00015499,2]
[318565908,1710294632887,-500.0,0.00015499,2]
[318565910,1710294632898,-503.92314508,0.00015499,2]
[318565912,1710294632907,-500.0,0.00015499,2]
[318565914,1710294632918,-500.0,0.00015499,2]
[318565916,1710294632927,-235.47823425,0.00015499,2]
[318565918,1710294632937,-35130.84399072,0.000155,2]
[318566040,1710294638825,-213000.92494687,0.000155,2]
[318566043,1710294638837,-16574.47261493,0.000155,2]
[318566239,1710294646991,-596.50052206,0.00015499,2]
[318566241,1710294647001,-13228.1138846,0.000155,2]
[318566267,1710294647159,-7238.93313769,0.000155,2]
[318566611,1710295838038,-775.85668755,0.00014139,2]
[318566614,1710295838047,-775.85668755,0.0001414,2]
[318566616,1710295838057,-2000.0,0.00014865,2]
[318566618,1710295838067,-387.98855461,0.00014933,2]
[318566620,1710295838076,-500.0,0.00014999,2]
[318566622,1710295838086,-500.0,0.00014999,2]
[318566624,1710295838095,-500.0,0.00014999,2]
[318566625,1710295838105,-501.99050742,0.00014999,2]
[318566627,1710295838114,-500.0,0.00014999,2]
[318566630,1710295838124,-500.0,0.00014999,2]
[318566631,1710295838134,-500.0,0.00014999,2]
[318566633,1710295838144,-500.0,0.00014999,2]
[318566635,1710295838154,-430.83963952,0.00014999,2]
[318566637,1710295838164,-876.97,0.00014999,2]
[318566640,1710295838174,-876.97,0.00014999,2]
[318566642,1710295838183,-876.97,0.00014999,2]
[318566644,1710295838193,-876.97,0.00014999,2]
[318566646,1710295838203,-876.97,0.00014999,2]
[318566648,1710295838212,-876.97,0.00014999,2]
[318566650,1710295838222,-876.97,0.00014999,2]
[318566652,1710295838231,-876.97,0.00014999,2]
[318566654,1710295838240,-876.97,0.00014999,2]
[318566657,1710295838249,-876.97,0.00014999,2]
[318566660,1710295838259,-876.97,0.00014999,2]
[318566664,1710295838269,-876.97,0.00014999,2]
[318566666,1710295838278,-500.0,0.00014999,2]
[318566670,1710295838288,-500.0,0.00014999,2]
[318566673,1710295838298,-500.0,0.00014999,2]
[318566675,1710295838307,-500.99208368,0.00014999,2]
[318566680,1710295838317,-503.12934524,0.00014999,2]
[318566682,1710295838327,-208.09174994,0.00014999,2]
[318566685,1710295838336,-500.0,0.00014999,2]
[318566688,1710295838346,-229.6599974,0.00014999,2]
[318566691,1710295838355,-500.0,0.00014999,2]
[318566693,1710295838365,-500.0,0.00014999,2]
[318566694,1710295838375,-500.0,0.00014999,2]
[318566697,1710295838385,-502.64632368,0.00014999,2]
[318566699,1710295838394,-500.0,0.00014999,2]
[318566702,1710295838403,-500.0,0.00014999,2]
[318566705,1710295838412,-500.0,0.00014999,2]
[318566708,1710295838422,-500.0,0.00014999,2]
[318566711,1710295838432,-500.0,0.00014999,2]
[318566714,1710295838441,-150.55282036,0.00014999,2]
[318566717,1710295838449,-500.0,0.00014999,2]
[318566720,1710295838459,-500.0,0.00014999,2]
[318566723,1710295838468,-500.0,0.00014999,2]
[318566726,1710295838480,-500.0,0.00014999,2]
[318566729,1710295838490,-506.45746118,0.00014999,2]
[318566732,1710295838499,-500.0,0.00014999,2]
[318566735,1710295838508,-500.0,0.00014999,2]
[318566738,1710295838518,-500.0,0.00014999,2]
[318566741,1710295838528,-153.28810644,0.00014999,2]
[318566744,1710295838537,-500.0,0.00014999,2]
[318566747,1710295838546,-500.0,0.00014999,2]
[318566750,1710295838554,-500.0,0.00014999,2]
[318566753,1710295838564,-500.0,0.00014999,2]
[318566755,1710295838573,-502.06426051,0.00014999,2]
[318566758,1710295838583,-407.45209129,0.00014999,2]
[318566761,1710295838593,-500.0,0.00014999,2]
[318566764,1710295838602,-500.0,0.00014999,2]
[318566767,1710295838611,-500.0,0.00014999,2]
[318566770,1710295838620,-500.0,0.00014999,2]
[318566773,1710295838629,-502.50733847,0.00014999,2]
[318566776,1710295838639,-500.0,0.00014999,2]
[318566779,1710295838648,-500.0,0.00014999,2]
[318566782,1710295838659,-500.0,0.00014999,2]
[318566786,1710295838669,-514.198311,0.00014999,2]
[318566788,1710295838679,-419.71749383,0.00014999,2]
[318566791,1710295838689,-500.0,0.00014999,2]
[318566794,1710295838699,-500.0,0.00014999,2]
[318566797,1710295838708,-500.0,0.00014999,2]
[318566800,1710295838718,-500.0,0.00014999,2]
[318566803,1710295838727,-500.85478778,0.00014999,2]
[318566806,1710295838738,-500.0,0.00014999,2]
[318566809,1710295838748,-500.0,0.00014999,2]
[318566813,1710295838759,-500.0,0.00014999,2]
[318566816,1710295838768,-500.0,0.00014999,2]
[318566818,1710295838779,-530.19820949,0.00014999,2]
[318566821,1710295838788,-506.59537522,0.00014999,2]
[318566825,1710295838797,-501.08597932,0.00014999,2]
[318566827,1710295838808,-500.0,0.00014999,2]
[318566831,1710295838818,-500.0,0.00014999,2]
[318566833,1710295838828,-500.0,0.00014999,2]
[318566836,1710295838837,-500.0,0.00014999,2]
[318566839,1710295838846,-500.0,0.00014999,2]
[318566843,1710295838856,-500.0,0.00014999,2]
[318566846,1710295838866,-500.0,0.00014999,2]
[318566848,1710295838875,-500.0,0.00014999,2]
[318566852,1710295838885,-500.88938314,0.00014999,2]
[318566854,1710295838895,-500.0,0.00014999,2]
[318566858,1710295838905,-500.0,0.00014999,2]
[318566861,1710295838914,-561.46642677,0.00014999,2]
[318566864,1710295838923,-533.83790093,0.00014999,2]
[318566867,1710295838932,-502.26125973,0.00014999,2]
[318566869,1710295838942,-500.0,0.00014999,2]
[318566871,1710295838951,-500.0,0.00014999,2]
[318566876,1710295838962,-501.20361034,0.00014999,2]
[318566879,1710295838971,-500.0,0.00014999,2]
[318566882,1710295838980,-625.6860557,0.00014999,2]
[318566884,1710295838991,-506.12423601,0.00014999,2]
[318566887,1710295839001,-500.0,0.00014999,2]
[318566890,1710295839010,-500.0,0.00014999,2]
[318566893,1710295839019,-500.0,0.00014999,2]
[318566896,1710295839028,-500.0,0.00014999,2]
[318566900,1710295839038,-502.08372415,0.00014999,2]
[318566903,1710295839047,-500.0,0.00014999,2]
[318566906,1710295839057,-649.75757445,0.00014999,2]
[318566909,1710295839066,-622.49989089,0.00014999,2]
[318566911,1710295839076,-500.0,0.00014999,2]
[318566915,1710295839087,-500.0,0.00014999,2]
[318566917,1710295839097,-504.0926397,0.00014999,2]
[318566921,1710295839107,-501.03893,0.00014999,2]
[318566923,1710295839116,-500.0,0.00014999,2]
[318566926,1710295839126,-500.0,0.00014999,2]
[318566929,1710295839135,-501.04121833,0.00014999,2]
[318566933,1710295839144,-500.0,0.00014999,2]
[318566934,1710295839153,-645.15374119,0.00014999,2]
[318566938,1710295839163,-500.0,0.00014999,2]
[318566940,1710295839172,-500.0,0.00014999,2]
[318566941,1710295839182,-500.0,0.00014999,2]
[318566945,1710295839192,-500.0,0.00014999,2]
[318566946,1710295839202,-500.0,0.00014999,2]
[318566949,1710295839213,-500.0,0.00014999,2]
[318566951,1710295839222,-500.0,0.00014999,2]
[318566953,1710295839232,-500.0,0.00014999,2]
[318566954,1710295839241,-500.0,0.00014999,2]
[318566957,1710295839250,-536.06399119,0.00014999,2]
[318566959,1710295839260,-501.76077933,0.00014999,2]
[318566961,1710295839269,-347094.15357715,0.00015,2]
[318566963,1710295839283,-584.92,0.00015,2]
[318567579,1710295846129,-500.0,0.00014999,2]
[318567582,1710295846149,-500.0,0.00014999,2]
[318567585,1710295846162,-500.78266809,0.00014999,2]
[318567587,1710295846172,-500.0,0.00014999,2]
[318567589,1710295846183,-500.0,0.00014999,2]
[318567591,1710295846193,-500.0,0.00014999,2]
[318567593,1710295846203,-503.12537548,0.00014999,2]
[318567595,1710295846212,-6564.65301201,0.00015,2]
[318575933,1710297032117,-624.65442974,0.00012626,2]
[318575934,1710297032127,-1952.51859257,0.00012626,2]
[318575935,1710297032138,-491.58700403,0.00012626,2]
[318575936,1710297032149,-339.47725074,0.00012627,2]
[318575937,1710297032158,-6397.57744,0.00012814,2]
[318575938,1710297032167,-184.9630239,0.0001299,2]
[318575939,1710297032178,-2213.7080006,0.00013218,2]
[318575940,1710297032187,-261.5954494,0.00013699,2]
[318575941,1710297032197,-646.54723963,0.00014,2]
[318575942,1710297032207,-247.53314842,0.00014039,2]
[318575944,1710297032217,-185.21481646,0.00014799,2]
[318575946,1710297032227,-1666.08454515,0.00014897,2]
[318575948,1710297032236,-500.0,0.00014899,2]
[318575950,1710297032246,-500.0,0.00014899,2]
[318575952,1710297032256,-876.97,0.00014899,2]
[318575954,1710297032264,-876.97,0.00014899,2]
[318575956,1710297032274,-500.0,0.00014899,2]
[318575958,1710297032285,-500.0,0.00014899,2]
[318575960,1710297032294,-208.09174994,0.00014899,2]
[318575962,1710297032304,-500.0,0.00014899,2]
[318575964,1710297032313,-500.0,0.00014899,2]
[318575966,1710297032323,-500.0,0.00014899,2]
[318575967,1710297032332,-500.0,0.00014899,2]
[318575969,1710297032343,-503.12934524,0.00014899,2]
[318575971,1710297032352,-500.0,0.00014899,2]
[318575973,1710297032361,-229.6599974,0.00014899,2]
[318575975,1710297032371,-500.0,0.00014899,2]
[318575977,1710297032380,-500.0,0.00014899,2]
[318575978,1710297032390,-500.0,0.00014899,2]
[318575979,1710297032399,-500.0,0.00014899,2]
[318575980,1710297032408,-500.0,0.00014899,2]
[318575981,1710297032418,-500.0,0.00014899,2]
[318575982,1710297032427,-500.0,0.00014899,2]
[318575983,1710297032436,-500.0,0.00014899,2]
[318575984,1710297032446,-500.0,0.00014899,2]
[318575986,1710297032456,-500.0,0.00014899,2]
[318575988,1710297032466,-500.0,0.00014899,2]
[318575990,1710297032476,-500.0,0.00014899,2]
[318575991,1710297032485,-500.0,0.00014899,2]
[318575993,1710297032495,-500.0,0.00014899,2]
[318575995,1710297032504,-500.0,0.00014899,2]
[318575996,1710297032513,-500.0,0.00014899,2]
[318575997,1710297032523,-501.28688187,0.00014899,2]
[318575999,1710297032533,-302.05986348,0.00014899,2]
[318576001,1710297032542,-500.0,0.00014899,2]
[318576003,1710297032551,-502.06411906,0.00014899,2]
[318576004,1710297032561,-500.0,0.00014899,2]
[318576005,1710297032570,-500.0,0.00014899,2]
[318576007,1710297032579,-500.0,0.00014899,2]
[318576009,1710297032588,-500.0,0.00014899,2]
[318576011,1710297032597,-27239.08358538,0.000149,2]
[318576013,1710297032622,-5931.79881023,0.000149,2]
[318576015,1710297032634,-64929.40344016,0.000149,2]
[318576016,1710297032644,-500.0,0.00014997,2]
[318576017,1710297032653,-500.0,0.00014997,2]
[318576018,1710297032662,-500.0,0.00014997,2]
[318576019,1710297032671,-500.0,0.00014997,2]
[318576020,1710297032681,-500.0,0.00014997,2]
[318576021,1710297032690,-500.0,0.00014998,2]
[318576022,1710297032700,-876.97,0.00014998,2]
[318576023,1710297032710,-500.0,0.00014998,2]
[318576024,1710297032720,-500.0,0.00014998,2]
[318576025,1710297032730,-500.0,0.00014998,2]
[318576026,1710297032739,-500.0,0.00014998,2]
[318576027,1710297032748,-503.519868,0.00014998,2]
[318576028,1710297032759,-500.0,0.00014998,2]
[318576029,1710297032769,-153.28810644,0.00014998,2]
[318576030,1710297032778,-500.0,0.00014998,2]